bitfinex/quotes_ETHUSD_20250110
["timestamp","ask_amount","ask_price","bid_price","bid_amount"]
[1736487180730,0.167852,3261.2,3260.9,0.0225]
[1736487180950,0.167852,3261.2,3261.1,0.7656]
[1736487181747,0.167852,3261.2,3261.1,0.79626036]
[1736487181942,0.167852,3261.2,3261.1,1.17662104]
[1736487183572,0.167852,3261.2,3261.1,3.8627004]
[1736487183876,0.167852,3261.2,3261.1,3.8852004]
[1736487185069,0.167852,3261.2,3261.1,3.85454]
[1736487185440,0.167852,3261.2,3261.1,4.07954]
[1736487186181,0.167852,3261.2,3261.1,4.07204]
[1736487186484,0.167852,3261.2,3261.1,4.479244]
[1736487187081,0.167852,3261.2,3261.1,1.412804]
[1736487187283,0.167852,3261.2,3261.1,1.0056]
[1736487189786,0.167852,3261.2,3261.1,0.9906]
[1736487194680,0.167852,3261.2,3261.1,0.9981]
[1736487197401,0.167852,3261.2,3261.1,1.0287602]
[1736487197702,0.167852,3261.2,3261.1,0.9981]
[1736487198000,0.167852,3261.2,3261.1,1.404561]
[1736487199536,0.167852,3261.2,3261.1,4.471001]
[1736487199667,0.167852,3261.2,3261.1,4.51666116]
[1736487200859,0.167852,3261.2,3261.1,4.486001]
[1736487206634,2e-06,3261.2,3261.1,4.486001]
[1736487206934,0.0311,3262.6,3261.9,3.06566]
[1736487207186,0.0311,3262.6,3261.7,0.03065353]
[1736487207293,0.0311,3262.6,3262.0,3.06557]
[1736487207499,0.0311,3262.8,3262.3,0.0075]
[1736487207696,5.60329085,3263.8,3262.3,0.0075]
[1736487207697,2.30033625,3263.2,3262.3,0.0075]
[1736487207927,0.0311,3263.1,3262.3,0.0075]
[1736487208328,0.0311,3263.1,3262.2,0.0075]
[1736487208502,0.0311,3263.1,3262.2,0.03814876]
[1736487208706,0.0311,3263.1,3262.6,0.798]
[1736487208707,0.26424363,3263.1,3262.6,0.798]
[1736487208910,2.30033625,3263.2,3262.7,3.06494]
[1736487210995,2.30033625,3263.2,3262.7,3.09558577]
[1736487211201,2.30033625,3263.2,3262.7,3.06494]
[1736487211601,0.0311,3263.4,3262.7,3.06494]
[1736487211804,2.30033625,3263.3,3262.7,3.06494]
[1736487212002,2.30033625,3263.3,3262.8,0.03064436]
[1736487212224,2.33143625,3263.4,3262.7,3.06494]
[1736487213347,3.41071833,3263.8,3262.7,3.06494]
[1736487213348,0.34680833,3263.8,3262.8,0.7726]
[1736487213642,2.30033625,3264.0,3263.1,3.06456]
[1736487214345,2.30033625,3263.4,3262.9,0.225]
[1736487214514,0.0311,3263.0,3262.5,0.225]
[1736487215315,0.0311,3263.0,3262.5,3.29012]
[1736487215719,0.0311,3263.0,3262.5,3.701132]
[1736487216107,2.30033625,3263.1,3262.5,3.701132]
[1736487216532,2.30033625,3263.1,3262.6,0.2556478]
[1736487216749,0.0311,3263.2,3262.6,3.28994]
[1736487217114,0.0311,3263.2,3262.6,0.225]
[1736487217320,2.30033625,3263.1,3262.5,0.0225]
[1736487217525,2.30033625,3263.1,3262.5,3.08757]
[1736487217725,2.30033625,3263.1,3262.5,3.29007]
[1736487218452,2.30033625,3263.1,3262.5,3.67525435]
[1736487218853,2.30033625,3263.1,3262.5,3.29007]
[1736487219248,2.30033625,3263.1,3262.5,0.225]
[1736487220482,2.30033625,3263.1,3262.3,3.8853]
[1736487220687,2.30033625,3262.8,3262.1,3.06548]
[1736487220852,0.0311,3262.7,3262.0,0.7775]
[1736487221051,2.30033625,3262.5,3262.1,0.225]
[1736487221757,0.0311,3262.7,3262.1,0.225]
[1736487225481,2.30033625,3262.2,3261.7,0.8214]
[1736487225687,2.30033625,3262.2,3261.7,0.225]
[1736487226007,2.30033625,3262.2,3261.3,3.06623]
[1736487226008,0.0311,3262.1,3261.3,3.06623]
[1736487226287,0.0311,3261.8,3261.1,3.06643]
[1736487226495,0.0311,3261.8,3261.4,0.225]
[1736487226987,2.33143625,3262.2,3261.5,0.225]
[1736487228183,2.33143625,3262.2,3261.5,3.29102]
[1736487229632,3.06505,3262.6,3261.6,3.06597]
[1736487229633,0.0311,3262.4,3261.6,3.06597]
[1736487229826,0.0311,3262.4,3261.5,0.225]
[1736487229827,2.30033625,3262.2,3261.5,0.225]
[1736487230480,2.30033625,3261.9,3261.2,3.06635]
[1736487230720,3.0,3262.4,3261.0,0.308156]
[1736487230721,2.30033625,3261.6,3261.3,0.225]
[1736487231091,0.0311,3261.5,3260.6,0.8209]
[1736487231298,0.0311,3261.5,3260.7,0.225]
[1736487232221,2.30033625,3261.0,3260.1,3.06738]
[1736487232434,2.30033625,3260.7,3260.3,0.225]
[1736487234402,2.30033625,3260.7,3260.1,0.225]
[1736487235237,0.0311,3260.3,3260.1,0.225]
[1736487235619,0.0311,3260.3,3259.5,0.015]
[1736487235922,0.0311,3260.3,3260.1,3.06738]
[1736487236122,2.33143625,3260.7,3260.1,3.06738]
[1736487237131,2.33143625,3260.7,3260.2,0.225]
[1736487239140,2.33143625,3260.7,3260.2,0.226]
[1736487239905,0.0311,3260.7,3260.3,3.06718]
[1736487240404,2.33143625,3261.0,3260.3,3.06718]
[1736487240657,0.0311,3261.0,3260.3,0.03066992]
[1736487240870,2.33143625,3261.3,3260.3,0.03066992]
[1736487241004,2.33143625,3261.3,3260.5,3.06697]
[1736487241198,2.33143625,3261.3,3260.3,3.06719]
[1736487241199,2.30033625,3261.0,3260.3,3.06719]
[1736487242348,2.30033625,3261.0,3260.3,0.0306685]
[1736487242557,2.30033625,3261.0,3260.5,3.067]
[1736487242878,2.33143625,3261.3,3260.5,3.067]
[1736487243176,2.33143625,3261.3,3260.6,3.37361]
[1736487244053,2.33143625,3261.3,3260.6,0.3067]
[1736487244250,2.33143625,3261.3,3260.4,3.06709]
[1736487244448,2.33143625,3261.3,3260.5,3.067]
[1736487244649,2.33143625,3261.3,3260.6,0.7822]
[1736487244884,2.33143625,3261.3,3260.7,3.06676]
[1736487246494,2.33143625,3261.3,3260.8,3.06669]
[1736487246796,2.33143625,3261.3,3260.9,0.306669]
[1736487247660,2.30033625,3261.3,3260.9,0.306669]
[1736487248361,2.30033625,3261.3,3260.6,3.84911]
[1736487248707,2.30033625,3261.3,3260.7,3.06681]
[1736487249078,2.33143625,3261.6,3260.9,3.06661]
[1736487249738,0.0311,3261.9,3261.0,0.8633635]
[1736487250014,2.33143625,3262.2,3261.2,0.015]
[1736487250164,0.0311,3262.2,3261.3,0.0075]
[1736487250340,2.33143625,3262.5,3261.8,3.0657]
[1736487252441,2.33143625,3262.5,3261.8,3.37227]
[1736487253155,2.33143625,3262.5,3261.8,0.30657]
[1736487253354,2.33143625,3262.5,3261.6,0.015]
[1736487253656,2.33143625,3262.5,3261.7,0.0075]
[1736487253847,2.33143625,3262.5,3261.9,3.06568]
[1736487254047,2.33143625,3262.5,3262.0,0.226]
[1736487254545,0.0311,3262.5,3262.0,3.29158]
[1736487254746,0.0311,3262.5,3262.1,0.329158]
[1736487256255,2.33143625,3262.8,3262.1,0.329158]
[1736487256469,2.30033625,3262.2,3260.7,0.8179]
[1736487256668,2.30033625,3261.9,3260.9,3.06656]
[1736487256847,0.0311,3262.1,3261.0,0.03066109]
[1736487257361,0.0311,3262.1,3261.2,3.06633]
[1736487258882,0.0311,3262.1,3261.3,0.226]
[1736487259254,0.0311,3262.1,3261.3,0.555233]
[1736487259588,0.0311,3262.4,3261.5,0.0075]
[1736487260370,0.0311,3262.4,3261.5,3.07353]
[1736487261474,0.0311,3262.4,3261.6,3.06597]
[1736487261662,0.0311,3262.4,3261.8,3.0657]
[1736487261867,0.0311,3262.4,3261.9,0.3096356]
[1736487262606,0.0311,3262.4,3261.3,1.099633]
[1736487262770,3.0964,3262.4,3261.6,0.226]
[1736487263086,0.0311,3261.8,3261.0,1.0476]
[1736487263286,0.0311,3261.8,3261.0,4.1141]
[1736487263455,0.0311,3261.8,3261.0,4.1447616]
[1736487263667,0.0311,3261.8,3261.1,3.06642]
[1736487263872,0.0311,3261.8,3261.2,0.41446816]
[1736487264688,0.0311,3261.8,3261.2,3.06631]
[1736487264889,0.0311,3261.8,3261.0,1.0476]
[1736487264890,0.0311,3261.8,3261.3,3.09689934]
[1736487265195,0.0311,3262.1,3261.5,3.06604]
[1736487265557,0.0311,3262.1,3261.6,0.03065652]
[1736487265758,0.0311,3262.1,3261.7,3.06584]
[1736487265984,0.0311,3262.4,3261.8,0.306584]
[1736487267383,0.0311,3262.4,3261.8,0.3372405]
[1736487267557,0.0311,3262.4,3261.9,0.241]
[1736487267761,0.0311,3262.4,3262.0,3.06559]
[1736487268201,0.0311,3262.7,3262.0,3.06559]
[1736487268373,0.0311,3262.7,3262.1,0.330659]
[1736487273623,0.0311,3262.7,3262.1,0.32126733]
[1736487274225,0.0311,3262.7,3262.1,3.38671733]
[1736487274425,0.0311,3262.7,3262.2,3.09606247]
[1736487274817,0.0311,3262.7,3262.2,3.06541]
[1736487275222,0.0311,3262.7,3262.2,3.48650773]
[1736487276645,0.0311,3263.0,3262.3,3.06531]
[1736487278347,0.0311,3263.0,3262.2,0.64809773]
[1736487278648,0.0311,3263.0,3262.2,3.29239]
[1736487278851,0.0311,3263.0,3262.3,0.227]
[1736487280308,0.0311,3262.9,3262.2,3.06539]
[1736487282446,0.0311,3262.9,3262.1,0.227]
[1736487283072,2.30033625,3262.7,3262.1,0.227]
[1736487283272,2.30033625,3262.7,3261.3,3.06618]
[1736487283273,0.0311,3262.3,3261.5,3.066]
[1736487283559,0.0311,3262.3,3261.6,0.227]
[1736487284210,0.0311,3262.3,3261.6,3.29293]
[1736487285374,0.0311,3262.3,3261.6,0.227]
[1736487285525,0.0311,3262.3,3261.7,0.0225]
[1736487285708,0.0311,3262.3,3261.8,0.03065356]
[1736487285917,0.0311,3262.3,3261.7,0.0225]
[1736487286142,0.0311,3262.3,3261.7,0.354052]
[1736487286313,0.0311,3262.6,3262.1,3.06549]
[1736487288862,0.0311,3262.6,3262.0,0.227]
[1736487290056,0.0311,3262.6,3262.0,3.2926]
[1736487291433,0.0311,3262.6,3262.0,3.70117]
[1736487291644,0.0311,3262.6,3262.1,3.0655]
[1736487293620,0.0311,3262.6,3262.1,0.0075]
[1736487293863,0.0311,3262.9,3262.3,3.06531]
[1736487295131,0.0311,3262.9,3262.4,3.06514]
[1736487295331,0.0311,3262.9,3262.5,0.306514]
[1736487295533,0.0311,3262.9,3262.4,3.89724]
[1736487295863,0.0311,3262.9,3262.4,0.8321]
[1736487296054,0.0311,3263.3,3262.6,3.065]
[1736487296248,0.0311,3263.3,3262.7,3.06493]
[1736487296673,0.0311,3263.8,3262.7,0.8396]
[1736487296829,0.0311,3263.8,3263.0,3.06465]
[1736487297170,0.0311,3263.8,3263.1,0.03064472]
[1736487297528,0.0311,3263.8,3263.4,3.06426]
[1736487298571,2.33143625,3264.0,3263.3,0.79514202]
[1736487298863,2.33143625,3264.0,3263.5,3.06416]
[1736487299241,0.0311,3264.0,3263.6,3.06408]
[1736487299434,0.0311,3264.0,3263.4,3.06428]
[1736487299629,0.0311,3264.0,3263.5,3.06415]
[1736487299968,0.0311,3264.0,3263.6,3.06407]
[1736487300746,0.0311,3264.0,3263.7,3.06399]
[1736487300942,0.167852,3264.5,3263.7,3.06399]
[1736487301168,0.167852,3264.5,3263.6,0.03063889]
[1736487301169,0.0311,3264.4,3263.8,3.06388]
[1736487301533,0.0311,3264.4,3263.9,3.8875]
[1736487301728,0.0311,3264.4,3264.0,3.28871]
[1736487301978,0.167852,3264.5,3264.4,3.06335]
[1736487302278,0.167852,3264.5,3264.4,3.90955]
[1736487302590,0.167852,3264.5,3264.4,3.06335]
[1736487302954,0.167852,3264.5,3264.4,3.369685]
[1736487303364,0.167852,3264.5,3264.4,3.40031585]
[1736487303588,0.167852,3264.5,3264.4,3.42281585]
[1736487303911,0.167852,3264.5,3264.4,4.18531585]
[1736487304117,0.167852,3264.5,3264.4,4.154685]
[1736487305808,0.167852,3264.5,3264.4,4.18531099]
[1736487306013,0.167852,3264.5,3264.4,4.154685]
[1736487306933,0.167852,3264.5,3264.4,4.379685]
[1736487309480,0.167852,3264.5,3264.2,3.06353]
[1736487309712,0.167852,3264.5,3264.1,0.225]
[1736487310077,2.33143625,3264.4,3264.1,0.225]
[1736487316789,2.33143625,3264.4,3263.6,0.225]
[1736487317661,2.33143625,3264.4,3263.6,3.28909]
[1736487318151,2.33143625,3264.4,3263.6,3.06409]
[1736487318421,0.0311,3264.3,3263.7,0.225]
[1736487322534,0.0311,3264.3,3263.7,3.28899]
[1736487322933,0.0311,3264.3,3263.3,0.0225]
[1736487323131,0.0311,3264.3,3263.6,3.06406]
[1736487323433,0.167852,3264.5,3263.5,0.225]
[1736487323434,0.0311,3264.0,3263.5,0.225]
[1736487324418,3.0,3263.5,3263.1,0.225]
[1736487324598,0.0311,3263.2,3262.5,0.225]
[1736487326720,0.0311,3263.2,3262.5,0.25564798]
[1736487327527,0.0311,3263.2,3262.5,0.225]
[1736487327923,2.30033625,3263.0,3262.4,0.225]
[1736487328124,0.0311,3263.1,3262.4,0.225]
[1736487328701,0.0311,3263.1,3262.4,3.32084097]
[1736487328902,0.0311,3263.1,3262.6,0.0075]
[1736487329115,0.0311,3263.5,3262.7,0.0075]
[1736487329309,0.0311,3263.5,3262.4,0.9792]
[1736487329310,2.30033625,3263.3,3262.4,0.9792]
[1736487329538,3.09557,3263.2,3262.4,0.225]
[1736487329741,0.0311,3263.2,3262.4,0.225]
[1736487330503,0.0311,3263.2,3262.7,3.06492]
[1736487330735,0.0311,3263.2,3262.5,0.0225]
[1736487330936,0.0311,3263.5,3262.7,0.8046]
[1736487331138,0.0311,3263.5,3262.7,0.8352448]
[1736487331338,0.0311,3263.5,3262.7,3.90017551]
[1736487331541,0.0311,3263.5,3262.9,3.06475]
[1736487332241,0.0311,3263.5,3263.1,3.07955]
[1736487332745,0.0311,3263.8,3263.6,3.06409]
[1736487332941,0.0311,3264.1,3263.7,0.226]
[1736487333652,0.0311,3264.1,3263.7,3.28999]
[1736487333943,0.0311,3264.1,3263.7,0.226]
[1736487344414,2.30033625,3264.3,3263.7,0.226]
[1736487344642,2.85659108,3264.3,3263.7,0.226]
[1736487345336,2.30033625,3264.3,3263.7,0.226]
[1736487346353,0.0311,3264.4,3263.7,0.226]
[1736487346517,0.167852,3264.5,3263.7,0.226]
[1736487346518,0.167852,3264.5,3264.3,3.06342]
[1736487346716,0.167852,3264.5,3264.4,3.06335]
[1736487347253,0.167852,3264.5,3264.4,3.11648198]
[1736487347455,0.167852,3264.5,3264.4,3.73139018]
[1736487349229,0.0311,3266.0,3264.5,0.7726]
[1736487349442,0.0311,3266.4,3264.9,0.7726]
[1736487349644,0.0311,3266.4,3265.7,3.06212]
[1736487349848,0.0311,3266.4,3265.8,0.226]
[1736487352960,0.0311,3266.4,3265.8,0.9991]
[1736487353560,0.0311,3266.7,3265.8,4.09172851]
[1736487353789,0.0311,3266.7,3265.8,4.50090136]
[1736487354199,2.30033625,3266.8,3265.9,3.06194]
[1736487354500,0.0311,3267.0,3266.1,3.06174]
[1736487355957,0.0311,3267.0,3265.9,0.03811372]
[1736487356163,0.0311,3267.0,3266.2,3.06164]
[1736487356369,0.0311,3267.0,3266.2,3.369304]
[1736487356570,0.0311,3267.0,3266.3,3.09215313]
[1736487356900,0.0311,3267.3,3266.4,3.81345]
[1736487358774,0.0311,3267.3,3266.5,0.05311015]
[1736487359100,0.0311,3267.3,3266.7,0.015]
[1736487359407,0.0311,3267.6,3266.8,0.226]
[1736487361165,0.0311,3267.6,3266.9,0.03060696]
[1736487361368,0.167852,3267.8,3267.2,3.08313]
[1736487361703,0.167852,3267.8,3267.4,3.07552]
[1736487361911,0.167852,3267.8,3267.5,0.03060067]
[1736487362201,0.167852,3267.8,3267.5,0.34121274]
[1736487362402,0.167852,3267.8,3267.6,0.0225]
[1736487362606,0.167852,3267.8,3267.7,0.226]
[1736487362906,0.167852,3267.8,3267.7,0.25659911]
[1736487363107,0.167852,3267.8,3267.7,1.06209911]
[1736487363794,0.167852,3267.8,3267.7,0.226]
[1736487364903,0.167852,3267.8,3267.7,1.0097]
[1736487365102,0.167852,3267.8,3267.7,1.41977005]
[1736487365915,0.167852,3267.8,3267.7,1.45036915]
[1736487366570,0.167852,3267.8,3267.7,1.47286915]
[1736487366788,0.167852,3267.8,3267.7,4.09245]
[1736487367312,0.167852,3267.8,3267.7,4.12304784]
[1736487368186,0.167852,3267.8,3267.7,4.09245]
[1736487368387,0.167852,3267.8,3267.7,4.123047]
[1736487368823,0.167852,3267.8,3267.7,4.09245]
[1736487368987,0.167852,3267.8,3267.7,4.501695]
[1736487370411,0.167852,3267.8,3267.7,4.53228945]
[1736487370575,0.167852,3267.8,3267.7,4.501695]
[1736487371211,0.167852,3267.8,3267.7,1.215445]
[1736487371414,0.167852,3267.8,3267.7,0.226]
[1736487371892,0.167852,3267.8,3267.7,0.2485]
[1736487372075,0.167852,3267.8,3267.7,3.33934829]
[1736487372271,0.167852,3267.8,3267.7,0.27909829]
[1736487372593,0.167852,3267.8,3267.7,0.2485]
[1736487372783,0.167852,3267.8,3267.7,0.226]
[1736487372985,0.198952,3267.8,3267.7,0.226]
[1736487373185,0.167852,3267.8,3267.7,0.241]
[1736487373778,0.167852,3267.8,3267.7,3.30875]
[1736487373972,0.167852,3267.8,3267.7,3.719525]
[1736487378602,0.167852,3267.8,3267.7,0.651775]
[1736487378993,0.167852,3267.8,3267.7,0.659275]
[1736487379405,0.167852,3267.8,3267.7,3.30875]
[1736487379717,0.167852,3267.8,3267.7,5.63968249]
[1736487379906,0.167852,3267.8,3267.7,6.41938625]
[1736487380093,0.167852,3267.8,3267.7,4.11905]
[1736487381221,0.167852,3267.8,3267.7,4.14964276]
[1736487381408,0.167852,3267.8,3267.7,4.53401428]
[1736487382740,0.167852,3267.8,3267.7,7.53401428]
[1736487382926,2e-06,3267.8,3267.7,10.38435053]
[1736487386798,0.625,3269.8,3269.0,0.015]
[1736487386986,0.6561,3269.8,3269.4,3.05861]
[1736487387186,0.6561,3269.8,3269.5,3.386881]
[1736487387484,0.625,3269.8,3269.5,0.328361]
[1736487387689,0.625,3269.8,3269.7,0.015]
[1736487388689,0.625,3269.8,3269.7,3.85188]
[1736487388923,0.625,3269.8,3269.7,3.88996139]
[1736487389339,0.625,3269.8,3269.7,3.85938]
[1736487389544,0.625,3269.8,3269.7,0.0225]
[1736487390042,0.625,3269.8,3269.7,3.08088]
[1736487390601,0.625,3269.8,3269.7,3.388968]
[1736487397656,0.625,3269.8,3269.7,3.381468]
[1736487397857,0.625,3269.8,3269.7,3.07338]
[1736487398159,0.625,3269.8,3269.7,3.29938]
[1736487398336,0.625,3269.8,3269.7,4.11038]
[1736487398539,0.625,3269.8,3269.7,4.11788]
[1736487399244,0.625,3269.8,3269.7,4.1484561]
[1736487399436,0.625,3269.8,3269.7,4.79333534]
[1736487399633,7.68e-06,3270.8,3270.6,0.0225]
[1736487399833,7.68e-06,3270.8,3270.7,3.30594]
[1736487401190,7.68e-06,3270.8,3270.7,3.33650863]
[1736487401524,7.68e-06,3270.8,3270.7,3.30594]
[1736487401742,7.68e-06,3270.8,3270.7,3.636534]
[1736487402357,7.68e-06,3270.8,3270.7,3.29844]
[1736487402861,7.68e-06,3270.8,3270.7,3.29094]
[1736487403232,7.68e-06,3270.8,3270.7,3.30594]
[1736487404359,7.68e-06,3270.8,3270.7,3.29844]
[1736487405051,7.68e-06,3270.8,3270.6,0.226]
[1736487407267,7.68e-06,3270.8,3270.7,3.11051345]
[1736487407426,7.68e-06,3270.8,3270.7,3.07994]
[1736487408061,7.68e-06,3270.8,3270.7,3.05744]
[1736487408264,7.68e-06,3270.8,3270.7,3.28344]
[1736487408563,7.68e-06,3270.8,3270.7,3.33650827]
[1736487408874,7.68e-06,3270.8,3270.7,3.67242793]
[1736487409386,7.68e-06,3270.8,3270.7,3.64992793]
[1736487409862,7.68e-06,3270.8,3270.7,3.42392793]
[1736487410068,7.68e-06,3270.8,3270.7,0.59248793]
[1736487410229,7.68e-06,3270.8,3270.7,3.70299759]
[1736487410426,7.68e-06,3270.8,3270.7,3.67242793]
[1736487410650,7.68e-06,3270.8,3270.7,4.46029516]
[1736487411049,7.68e-06,3270.8,3270.7,4.42972793]
[1736487411981,9.68e-06,3271.0,3270.9,3.83706]
[1736487412268,9.68e-06,3271.0,3270.9,6.88609504]
[1736487412632,9.68e-06,3271.0,3270.9,4.58575879]
[1736487413266,9.68e-06,3271.0,3270.9,4.81175879]
[1736487415946,2.12014593,3272.5,3271.6,3.05658]
[1736487416272,2.30033625,3272.8,3271.7,3.05643]
[1736487416480,2.30033625,3272.8,3271.8,0.226]
[1736487417476,2.30033625,3272.8,3271.9,3.05632]
[1736487418190,2.30033625,3272.8,3271.8,0.226]
[1736487418191,0.55,3272.7,3271.8,0.226]
[1736487418401,3.05469,3273.7,3272.2,2.30033625]
[1736487418544,0.305469,3273.6,3272.6,3.05566]
[1736487418742,1.69441111,3275.0,3272.8,0.8049]
[1736487418948,3.221952,3274.3,3272.9,0.03055202]
[1736487419165,3.221952,3274.3,3273.1,3.05511]
[1736487419473,3.221952,3274.3,3273.2,0.03054669]
[1736487419474,0.167852,3274.3,3273.2,0.03054669]
[1736487419679,0.167852,3274.3,3273.6,3.05474]
[1736487419835,0.167852,3274.3,3274.0,2.30033625]
[1736487420035,0.167852,3274.3,3274.2,3.05418]
[1736487420238,0.167852,3274.3,3274.2,3.87408]
[1736487420441,2e-06,3274.3,3274.2,3.87408]
[1736487420760,2.87188337,3274.8,3274.7,3.05371]
[1736487420942,0.25,3277.1,3274.7,3.05371]
[1736487420943,3.05148,3277.1,3274.8,0.8068]
[1736487421141,0.25,3277.5,3275.5,0.8068]
[1736487421449,2.75275889,3276.9,3275.7,3.05274]
[1736487421639,2.75275889,3276.9,3275.6,0.03052518]
[1736487421640,3.0514,3277.2,3275.8,2.45819291]
[1736487421837,3.082003,3277.1,3275.8,2.45819291]
[1736487422040,2.96095919,3277.0,3275.8,2.45819291]
[1736487422277,0.030523,3276.9,3275.8,2.45819291]
[1736487422454,2.96095919,3277.0,3276.0,3.05244]
[1736487422650,2.75275889,3276.2,3275.4,0.227]
[1736487422874,2.75275889,3276.2,3274.4,0.7506]
[1736487422875,2.75275889,3275.8,3275.2,0.227]
[1736487423041,0.55,3275.3,3274.5,0.227]
[1736487423244,2.75275889,3274.6,3274.1,0.227]
[1736487423442,0.030523,3274.5,3273.9,0.227]
[1736487423880,2.75275889,3275.4,3274.2,3.05417]
[1736487424081,2.75275889,3275.4,3273.9,1.0339]
[1736487424082,0.030523,3275.3,3273.9,1.0339]
[1736487424374,0.27832819,3275.2,3274.0,0.227]
[1736487424578,0.55,3274.5,3274.0,0.227]
[1736487424760,0.030523,3274.4,3274.0,0.227]
[1736487424947,0.030523,3274.4,3273.1,3.05515]
[1736487425275,0.030523,3274.4,3272.5,0.8069]
[1736487425276,0.55,3274.1,3273.6,0.227]
[1736487425448,0.55,3273.7,3273.3,0.227]
[1736487425779,0.55,3273.7,3272.5,0.227]
[1736487425780,0.55,3273.3,3272.5,0.227]
[1736487425982,0.55,3272.9,3271.4,0.8069]
[1736487426285,0.25,3273.9,3271.4,0.8069]
[1736487426286,0.55,3272.5,3271.5,3.28366]
[1736487426463,2.75275889,3273.0,3271.6,0.03056206]
[1736487426683,0.63569489,3274.0,3271.9,3.05632]
[1736487427000,2.75275889,3274.6,3273.1,0.0075]
[1736487427185,2.75275889,3275.0,3273.8,3.05449]
[1736487427386,2.75275889,3274.6,3273.3,0.0075]
[1736487427583,0.030523,3274.5,3273.3,0.0075]
[1736487427793,0.030523,3274.5,3273.3,3.07001]
[1736487427970,0.27832819,3274.4,3273.3,3.05501]
[1736487428173,0.27832819,3274.4,3272.2,2.75275889]
[1736487428174,2.75275889,3274.1,3273.4,0.227]
[1736487428373,0.580523,3274.0,3272.8,3.05545]
[1736487428571,0.55,3274.0,3272.9,0.25754982]
[1736487428972,0.580523,3273.9,3272.9,0.227]
[1736487429178,0.030523,3273.9,3272.9,3.28237]
[1736487429396,0.55,3273.8,3272.9,3.28237]
[1736487429704,0.66927819,3273.9,3273.1,3.0552]
[1736487429901,0.030523,3273.9,3273.1,3.0552]
[1736487430113,0.030523,3273.9,3272.9,0.227]
[1736487430596,0.030523,3273.9,3273.0,3.05529]
[1736487430803,0.030523,3273.9,3273.0,3.28229]
[1736487431004,2.75275889,3274.1,3273.0,3.28229]
[1736487431192,0.61121889,3274.0,3273.0,3.28229]
[1736487431361,0.61121889,3274.0,3273.0,0.227]
[1736487431560,2.75275889,3273.3,3272.8,0.227]
[1736487431765,0.61121889,3274.0,3271.9,0.8057]
[1736487431766,2.75275889,3272.9,3272.4,0.227]
[1736487431975,0.030523,3272.8,3272.2,0.227]
[1736487432304,2.75275889,3272.5,3271.9,0.227]
[1736487432504,0.030523,3272.4,3271.6,3.05656]
[1736487432823,0.030523,3272.4,3271.7,0.227]
[1736487433378,2.75275889,3272.1,3271.3,0.227]
[1736487433582,0.030523,3272.0,3271.3,0.227]
[1736487434111,0.030523,3272.0,3271.4,0.227]
[1736487434311,2.75275889,3271.7,3271.4,0.227]
[1736487434494,0.030523,3271.6,3271.4,0.227]
[1736487434814,0.030523,3271.6,3271.2,0.227]
[1736487434976,2.75275889,3271.7,3271.2,0.227]
[1736487435173,2.75275889,3272.5,3271.2,0.227]
[1736487435375,0.030523,3272.4,3271.2,0.227]
[1736487435616,2.75275889,3272.1,3271.2,0.227]
[1736487435812,0.030523,3272.0,3271.2,0.227]
[1736487436110,0.030523,3272.0,3271.3,0.227]
[1736487436311,2.75275889,3271.7,3270.9,0.227]
[1736487436513,0.030523,3271.6,3270.9,0.227]
[1736487436813,2.75275889,3271.7,3270.9,0.227]
[1736487437018,2.75275889,3271.7,3271.0,0.328432]
[1736487437384,0.030523,3271.6,3271.0,0.328432]
[1736487437573,0.030523,3271.6,3270.9,0.227]
[1736487438380,0.030523,3271.6,3270.7,3.05742]
[1736487438711,0.030523,3271.6,3270.8,3.28432]
[1736487439113,0.030523,3271.6,3270.8,0.227]
[1736487439723,2.75275889,3271.7,3270.8,0.25757031]
[1736487440022,2.75275889,3272.1,3271.2,3.05692]
[1736487440211,2.75275889,3272.1,3271.2,3.362612]
[1736487440406,2.75275889,3272.1,3271.2,0.305692]
[1736487440608,2.75275889,3271.7,3271.0,3.28416]
[1736487440814,2.75275889,3272.1,3271.1,0.25756722]
[1736487441112,2.75275889,3272.1,3271.2,0.015]
[1736487441888,2.75275889,3272.9,3271.3,0.0075]
[1736487442092,2.75275889,3272.9,3271.7,0.0225]
[1736487442289,2.75275889,3272.9,3272.2,3.05603]
[1736487442532,0.030523,3272.8,3272.3,0.227]
[1736487443102,2.75275889,3272.4,3271.7,0.227]
[1736487443321,2.75275889,3272.4,3270.2,3.05784]
[1736487443322,0.30579889,3272.3,3271.4,0.227]
[1736487443622,5.80907889,3272.0,3271.4,0.227]
[1736487443823,2.75275889,3272.0,3271.4,0.227]
[1736487444024,0.030523,3271.9,3271.4,0.227]
[1736487444238,2.75275889,3271.6,3270.5,3.05763]
[1736487444430,0.030523,3271.5,3270.8,0.227]
[1736487444789,2.75275889,3272.0,3270.9,3.31479986]
[1736487444998,0.030523,3271.9,3270.9,0.227]
[1736487445393,3.086873,3271.9,3270.9,0.227]
[1736487445599,2.75275889,3271.6,3270.9,0.227]
[1736487445928,0.030523,3271.5,3270.9,0.227]
[1736487446945,2.75275889,3271.6,3270.9,0.25756987]
[1736487447099,2.75275889,3272.0,3271.0,0.33149199]
[1736487447428,2.75275889,3272.0,3271.1,0.03056884]
[1736487447741,2.75275889,3272.0,3271.1,3.08760884]
[1736487448030,0.030523,3271.9,3270.9,3.28424]
[1736487448594,0.030523,3271.9,3271.0,3.0571]
[1736487448817,0.030523,3271.9,3271.1,0.32841]
[1736487449232,5.80870889,3272.4,3271.3,3.05688]
[1736487449431,0.030523,3272.3,3271.3,3.05688]
[1736487449612,2.75275889,3272.4,3271.4,0.0305642]
[1736487449811,2.75275889,3272.4,3271.5,0.0075]
[1736487450008,2.75275889,3272.4,3271.7,3.0565]